bitfinex/quotes_ETHUSD_20240824
["timestamp","ask_amount","ask_price","bid_price","bid_amount"]
[1724458532420,0.79742127,2764.1,2763.6,7.78681]
[1724458532718,0.79742127,2764.1,2763.6,4.16838]
[1724458533011,2.307,2764.0,2763.6,4.16838]
[1724458533221,0.0441359,2763.9,2763.6,7.78676]
[1724458533429,0.0441359,2763.9,2763.7,3.61831]
[1724458534027,0.7531803,2764.1,2763.7,3.61831]
[1724458534224,0.04408336,2763.8,2763.7,7.23664]
[1724458534438,1.13206558,2764.2,2763.9,3.61799]
[1724458534439,0.7531803,2764.2,2763.9,3.61799]
[1724458534592,0.7531803,2764.3,2764.0,3.61792]
[1724458535281,0.7531803,2764.3,2763.8,3.61809]
[1724458535519,0.7531803,2764.3,2763.9,3.61804]
[1724458536212,0.7531803,2764.2,2764.0,3.61794]
[1724458536419,0.7531803,2764.2,2763.9,3.61804]
[1724458536575,0.04229288,2764.1,2763.9,3.61804]
[1724458537619,0.04229288,2764.1,2764.0,3.61794]
[1724458537977,0.7531803,2764.3,2764.0,3.61794]
[1724458538178,0.04237938,2764.1,2764.0,3.61794]
[1724458538373,0.7531803,2764.3,2764.0,3.61794]
[1724458538619,0.04238803,2764.1,2764.0,3.61794]
[1724458538822,0.7531803,2764.3,2764.0,3.61794]
[1724458539032,0.04238803,2764.1,2764.0,3.61794]
[1724458539173,0.7531803,2764.2,2763.9,4.622923]
[1724458539525,0.04238803,2764.1,2763.9,4.622923]
[1724458539833,0.04238803,2764.1,2764.0,4.0802323]
[1724458540125,0.04238803,2764.1,2764.0,10.0998723]
[1724458540337,0.7531803,2764.6,2764.3,3.61747]
[1724458540643,0.7531803,2764.5,2764.3,3.61747]
[1724458540777,0.7531803,2764.6,2764.3,4.340977]
[1724458540974,0.7531803,2764.6,2764.4,3.6174]
[1724458541216,0.7531803,2764.6,2764.4,3.61734]
[1724458541778,0.7531803,2764.6,2764.5,3.61729]
[1724458542184,0.7531803,2764.6,2764.4,3.61734]
[1724458543389,0.7531803,2764.5,2764.4,3.61734]
[1724458543816,0.79455672,2764.5,2764.4,3.61734]
[1724458544018,0.79455672,2764.5,2764.4,4.0514247]
[1724458545726,0.04137642,2764.5,2764.4,3.61734]
[1724458545931,1.173442,2764.5,2764.4,3.61734]
[1724458546099,1.173442,2764.5,2764.2,3.61758]
[1724458546297,0.75367247,2764.4,2764.2,3.61758]
[1724458546715,0.04127138,2764.3,2764.2,3.61758]
[1724458547498,0.79494385,2764.3,2764.2,3.61758]
[1724458550547,0.04127138,2764.3,2764.2,3.61758]
[1724458551349,0.04127138,2764.3,2764.2,10.360498]
[1724458551552,0.75367247,2764.5,2764.2,7.292918]
[1724458551764,0.75367247,2764.5,2764.4,7.23484]
[1724458552008,0.75367247,2764.5,2764.2,7.292858]
[1724458552009,0.75367247,2764.7,2764.6,7.2343]
[1724458552180,0.75367247,2764.8,2764.7,3.61702]
[1724458552339,1.13206558,2764.9,2764.8,7.23378]
[1724458552340,0.75367247,2764.9,2764.8,7.23378]
[1724458552695,1.13206558,2765.1,2764.9,3.61676]
[1724458552897,0.75379735,2765.0,2764.9,3.61676]
[1724458553794,0.75379735,2765.1,2764.9,3.61676]
[1724458554094,0.75379735,2765.0,2764.9,3.61676]
[1724458554405,0.75379735,2765.1,2764.9,3.61676]
[1724458554736,0.04038705,2765.0,2764.8,3.61689]
[1724458554951,0.7941844,2765.0,2764.8,3.61689]
[1724458555446,2.2706,2764.9,2764.3,3.0]
[1724458555575,2.2706,2764.9,2764.2,1.273538]
[1724458555576,0.75319297,2764.8,2764.4,0.55]
[1724458555793,0.04022954,2764.7,2764.5,3.61718]
[1724458555988,1.17280178,2764.7,2764.0,3.61792]
[1724458556199,0.75319297,2764.5,2764.0,3.61792]
[1724458556395,0.75319297,2764.4,2764.0,3.61792]
[1724458556729,0.79345081,2764.4,2764.0,3.61792]
[1724458557090,0.75319297,2764.3,2764.0,3.61792]
[1724458557641,2.2706,2764.1,2763.4,3.61871]
[1724458557816,2.2706,2764.1,2763.6,3.61844]
[1724458557817,3.02379297,2764.1,2763.6,3.61844]
[1724458558128,0.75319297,2764.0,2763.6,3.61844]
[1724458558286,3.40266558,2764.1,2763.3,5.93273]
[1724458558287,0.75319297,2763.9,2763.5,3.61849]
[1724458558487,0.75319297,2763.9,2763.3,5.93273]
[1724458558488,0.03987852,2763.9,2763.6,3.61846]
[1724458558727,0.79307149,2763.9,2763.7,3.61824]
[1724458558944,0.03987852,2763.9,2763.7,3.61824]
[1724458562245,0.03987852,2763.9,2763.5,3.61858]
[1724458562246,2.2706,2763.8,2763.5,3.61858]
[1724458562600,0.03958755,2763.7,2763.5,3.61858]
[1724458562800,2.2706,2763.8,2763.5,3.61858]
[1724458563001,0.039535,2763.6,2763.5,3.61858]
[1724458563303,2.2706,2763.8,2763.5,3.61858]
[1724458563505,0.03952635,2763.6,2763.5,3.61858]
[1724458563703,2.2706,2763.8,2763.3,6.61882]
[1724458563940,0.03952635,2763.6,2763.4,3.61872]
[1724458564104,0.0395789,2763.7,2763.4,3.61872]
[1724458564302,0.0394738,2763.5,2763.4,3.61872]
[1724458564575,0.03792194,2763.5,2763.4,3.61872]
[1724458564785,2.2706,2763.8,2763.4,3.61872]
[1724458564985,2.2706,2763.8,2763.5,3.61857]
[1724458565644,0.03673516,2763.7,2763.5,3.61857]
[1724458566024,2.2706,2763.8,2763.4,3.61872]
[1724458566543,0.03673516,2763.7,2763.4,3.61872]
[1724458566744,2.2706,2763.8,2763.4,3.61872]
[1724458566929,2.2706,2763.8,2763.0,6.6192]
[1724458566930,0.03673516,2763.7,2763.0,6.6192]
[1724458567133,0.78992813,2763.7,2763.1,3.61911]
[1724458567331,0.78992813,2763.7,2763.0,6.61914]
[1724458567532,0.75319297,2763.6,2763.0,6.61914]
[1724458567778,0.7897797,2763.5,2763.0,3.61914]
[1724458568086,0.03658673,2763.5,2763.0,3.61913]
[1724458568986,0.7897797,2763.5,2763.0,3.61913]
[1724458569337,0.7897797,2763.5,2763.0,7.23828]
[1724458569778,0.7897797,2763.5,2762.8,7.23887]
[1724458569986,2.2706,2763.3,2762.8,3.61941]
[1724458570192,0.75319297,2763.1,2762.4,3.61995]
[1724458570403,4.92295982,2763.0,2762.1,2.314]
[1724458570556,0.75319297,2762.9,2762.4,3.61991]
[1724458570736,0.78929581,2763.0,2762.6,3.61975]
[1724458570932,0.78929581,2763.0,2762.4,3.61991]
[1724458571187,0.78929581,2763.0,2762.5,3.61979]
[1724458571483,0.03610284,2763.0,2762.5,3.61979]
[1724458571642,0.03610284,2763.0,2762.5,4.34376]
[1724458571981,0.03610284,2763.0,2762.6,3.61976]
[1724458574137,0.03610284,2763.0,2762.5,0.72397]
[1724458574590,3.65536284,2763.0,2762.2,3.62028]
[1724458574814,3.61953,2762.8,2762.3,3.0]
[1724458574953,3.61965,2762.7,2762.3,3.0]
[1724458575147,3.61953,2762.8,2762.3,3.0]
[1724458575376,0.03514675,2762.6,2762.3,3.0]
[1724458575580,3.61953,2762.8,2762.2,6.62028]
[1724458575581,0.03519933,2762.7,2762.2,6.62028]
[1724458575797,0.03519933,2762.7,2762.3,3.62016]
[1724458576000,0.03509416,2762.5,2762.3,3.62016]
[1724458576299,0.03514675,2762.6,2762.3,3.62016]
[1724458576469,0.03514675,2762.6,2762.2,3.0]
[1724458576666,3.61954,2762.8,2762.2,6.62025]
[1724458577467,0.03507353,2762.7,2762.2,6.62025]
[1724458578010,0.03507353,2762.7,2762.3,3.62014]
[1724458578210,0.03507353,2762.7,2762.3,7.24019]
[1724458578372,0.03507353,2762.7,2762.5,3.61982]
[1724458578928,0.03507353,2762.7,2762.6,3.61977]
[1724458579369,0.03507353,2762.7,2762.3,9.63701]
[1724458579711,2.28727353,2762.7,2762.4,3.61995]
[1724458579878,2.28727353,2762.7,2762.3,3.62007]
[1724458580472,2.28727353,2762.7,2762.3,7.24015]
[1724458580873,2.28727353,2762.7,2762.3,3.62007]
[1724458581117,0.03377622,2762.6,2762.3,3.62007]
[1724458582247,0.2658812,2762.6,2761.9,3.6206]
[1724458582443,3.62031,2762.2,2761.7,3.6209]
[1724458582744,0.03351324,2762.1,2761.7,3.6209]
[1724458583042,2.2522,2762.1,2761.7,3.6209]
[1724458583246,0.03343026,2762.0,2761.5,7.323392]
[1724458583544,0.03343026,2762.0,2761.6,3.62108]
[1724458584148,0.03343026,2762.0,2761.5,3.702242]
[1724458584149,0.03343026,2762.0,2761.8,3.62073]
[1724458584820,0.03337765,2761.9,2761.8,3.62073]
[1724458585055,2.2522,2762.4,2761.8,3.62073]
[1724458585224,2.2522,2762.4,2761.7,3.62087]
[1724458585225,0.03358808,2762.3,2761.7,3.62087]
[1724458586027,3.65383808,2762.3,2761.7,3.62087]
[1724458586233,7.27410808,2762.3,2761.7,3.62087]
[1724458586744,2.2522,2762.2,2761.7,3.62087]
[1724458587099,0.0332529,2762.1,2761.7,3.62087]
[1724458587917,0.0332529,2762.1,2761.6,3.62107]
[1724458588421,3.62057,2762.0,2761.5,3.702272]
[1724458588623,0.03314768,2761.9,2761.5,3.702272]
[1724458588827,7.24098,2762.1,2761.5,3.702272]
[1724458589023,0.0332003,2762.0,2761.5,3.702272]
[1724458589516,0.0332003,2762.0,2761.5,7.323402]
[1724458589760,0.0332003,2762.0,2761.5,8.3557122]
[1724458589959,0.0332003,2762.0,2761.6,3.62107]
[1724458591466,2.2522,2762.2,2761.6,3.62107]
[1724458591652,0.0332529,2762.1,2761.6,3.62107]
[1724458593169,0.0332529,2762.1,2761.7,3.62093]
[1724458593377,0.0332529,2762.1,2761.7,4.45645122]
[1724458593579,0.0332529,2762.1,2761.9,3.62061]
[1724458594002,2.2522,2762.4,2761.9,3.62061]
[1724458594625,2.2522,2762.6,2761.7,0.83555122]
[1724458594827,0.03507353,2762.7,2762.5,3.61989]
[1724458594967,0.03507353,2762.7,2762.5,3.61982]
[1724458595611,0.03507353,2762.7,2762.6,3.61977]
[1724458595887,0.06934885,2762.7,2762.6,7.23954]
[1724458596069,0.06934885,2762.7,2762.6,7.31192472]
[1724458596308,0.03507353,2762.7,2762.6,7.31192472]
[1724458596598,0.03507353,2762.7,2762.6,8.34729639]
[1724458597162,0.03507353,2762.7,2762.6,4.65514167]
[1724458597789,0.03507353,2762.7,2762.6,4.72752627]
[1724458599272,0.03507353,2762.7,2762.6,4.65514167]
[1724458599817,0.03507353,2762.7,2762.6,4.72752631]
[1724458599974,0.03507353,2762.7,2762.6,8.34729631]
[1724458600180,0.03507353,2762.7,2762.6,8.82491167]
[1724458601712,0.03507353,2762.7,2762.6,14.93028167]
[1724458601917,0.03507353,2762.7,2762.6,21.55005167]
[1724458602615,2.4299,2764.2,2763.8,3.61811]
[1724458602771,0.3183093,2764.1,2763.8,3.61811]
[1724458603581,0.3183093,2764.1,2763.7,3.61828]
[1724458604318,2.4299,2764.2,2763.7,3.61828]
[1724458604730,2.4299,2764.2,2763.8,3.61819]
[1724458605593,2.4299,2764.2,2763.7,3.61831]
[1724458606601,2.4299,2764.2,2763.8,3.61819]
[1724458606803,2.4299,2764.2,2763.7,3.61831]
[1724458607120,3.1099723,2764.2,2763.7,3.61831]
[1724458607516,6.7277423,2764.2,2763.6,3.61837]
[1724458608500,3.61784,2764.1,2763.5,3.61854]
[1724458608820,7.48093527,2764.2,2763.5,7.23702]
[1724458609023,0.74809353,2764.1,2763.5,7.23702]
[1724458609238,4.36591353,2764.1,2763.5,3.61848]
[1724458609924,0.74809353,2764.1,2763.3,3.61882]
[1724458610131,4.36591353,2764.1,2763.5,3.6185]
[1724458611323,4.36591353,2764.1,2763.6,3.61846]
[1724458611692,3.1099723,2764.2,2763.7,7.23651]
[1724458611892,2.4299,2764.2,2763.7,3.61823]
[1724458612383,2.4299,2764.2,2763.7,7.23649]
[1724458612820,2.4299,2764.2,2763.8,3.61819]
[1724458615195,3.75020349,2764.4,2763.9,3.69040943]
[1724458615419,2.99701052,2764.4,2764.0,0.36904094]
[1724458615664,2.99701052,2764.4,2764.0,3.61785]
[1724458615833,2.99701052,2764.4,2763.9,3.61798]
[1724458616063,2.99701052,2764.4,2763.7,7.23653]
[1724458616243,6.61444052,2764.4,2763.7,3.61825]
[1724458616609,2.99701052,2764.4,2763.8,3.61811]
[1724458617655,2.99701052,2764.4,2763.9,3.61806]
[1724458618359,3.65844957,2764.4,2763.7,3.61825]
[1724458618699,3.61756,2764.3,2763.7,3.61825]
[1724458618921,3.61756,2764.3,2763.7,3.61824]
[1724458619378,3.61756,2764.3,2763.7,7.23648]
[1724458619660,3.65844957,2764.4,2763.8,3.6182]
[1724458620616,2.99701052,2764.4,2763.8,3.6182]
[1724458620818,2.99701052,2764.4,2763.9,3.61805]
[1724458621031,0.56711052,2764.4,2764.1,3.6177]
[1724458621282,0.56711052,2764.4,2764.2,3.61768]
[1724458621554,0.56711052,2764.4,2764.2,7.23527]
[1724458621702,2.3605,2764.7,2764.2,4.579117]
[1724458621903,2.3605,2765.0,2764.4,3.6173]
[1724458622521,2.3605,2765.3,2764.7,3.61693]
[1724458623504,5.97677,2765.3,2764.7,3.61693]
[1724458624313,2.3605,2765.3,2764.8,3.61689]
[1724458625309,2.3605,2765.3,2764.9,3.61676]
[1724458625514,2.3605,2765.6,2764.9,3.61676]
[1724458625746,2.3605,2765.6,2764.8,2.45233122]
[1724458625747,2.3605,2765.6,2765.0,0.60690912]
[1724458625906,2.3605,2765.6,2764.8,2.38]
[1724458625907,2.3605,2765.6,2765.1,3.61639]
[1724458626123,2.3605,2765.6,2765.2,3.61636]
[1724458626660,0.00155064,2765.7,2765.2,3.61636]
[1724458626859,0.00155064,2765.7,2765.4,3.61607]
[1724458627064,0.00155064,2765.7,2765.0,3.61658]
[1724458627262,2.3605,2765.6,2765.0,3.61658]
[1724458628085,3.61603,2765.5,2764.8,3.61677]
[1724458628705,2.3605,2765.3,2764.7,3.61702]
[1724458630279,2.3605,2765.3,2764.8,3.61689]
[1724458630917,0.03648998,2765.2,2764.8,3.61689]
[1724458631144,2.3605,2765.3,2764.8,3.61689]
[1724458631419,0.03648998,2765.2,2764.8,7.23369]
[1724458631584,0.03648998,2765.2,2764.9,3.61675]
[1724458631789,2.3605,2765.3,2764.9,3.61675]
[1724458632198,2.39701554,2765.3,2764.9,3.61675]
[1724458632873,2.39701554,2765.3,2765.0,3.61661]
[1724458633299,2.39701554,2765.3,2765.0,7.23314]
[1724458633974,2.39701554,2765.3,2765.0,3.61653]
[1724458634872,2.3605,2765.3,2765.0,3.61653]
[1724458635490,2.3209,2765.6,2765.0,3.61653]
[1724458635689,2.93834157,2765.6,2765.0,3.61653]
[1724458635887,6.55419157,2765.6,2765.0,3.61653]
[1724458636906,3.61598,2765.5,2765.0,3.61653]
[1724458637422,3.61598,2765.5,2764.8,7.23365]
[1724458637577,2.3209,2765.2,2764.7,3.61698]
[1724458637778,2.914614,2765.2,2764.7,3.61698]
[1724458638280,3.61651,2765.1,2764.5,6.61726]
[1724458638541,2.914614,2765.2,2764.6,3.61713]
[1724458638695,2.914614,2765.2,2764.7,3.61699]
[1724458638919,2.3209,2765.4,2764.8,3.61687]
[1724458639254,2.3209,2765.4,2764.9,3.61676]
[1724458639544,2.3209,2765.4,2765.0,3.61656]
[1724458641623,0.03647722,2765.3,2765.0,3.61656]
[1724458642022,0.03647722,2765.3,2764.8,3.6168]
[1724458642228,0.03647722,2765.3,2764.8,0.59347]
[1724458642560,0.03647722,2765.3,2765.2,3.61637]
[1724458642837,0.03647722,2765.3,2765.2,7.23274]
[1724458643158,3.0,2766.2,2765.7,3.6157]
[1724458643159,2.3209,2766.2,2765.7,3.6157]
[1724458643326,2.3209,2766.2,2765.6,3.61574]
[1724458643528,2.9898113,2766.2,2765.6,3.61574]
[1724458643896,6.6049013,2766.2,2765.6,3.61574]
[1724458647246,6.6049013,2766.2,2765.6,7.23151]
[1724458647393,6.6049013,2766.2,2765.6,3.61574]
[1724458647394,5.93599,2766.2,2765.6,3.61574]
[1724458648402,3.6152,2766.1,2765.6,3.61574]
[1724458649439,0.75319297,2766.4,2765.7,2.39021176]
[1724458649640,2.3209,2766.5,2765.8,3.6155]
[1724458649954,2.3209,2766.1,2765.2,2.8679]
[1724458650120,2.3209,2766.1,2765.5,3.6159]
[1724458650323,2.3209,2766.1,2765.6,3.61582]
[1724458650851,2.3209,2766.1,2765.7,3.61569]
[1724458651436,2.3209,2766.1,2765.5,3.61589]
[1724458651638,2.55299,2766.1,2765.5,3.61589]
[1724458651837,6.16829,2766.1,2765.3,6.61615]
[1724458652415,2.55299,2766.1,2765.3,6.61615]
[1724458652611,2.3209,2766.1,2765.5,3.61598]
[1724458653955,0.00155064,2765.7,2765.5,3.61598]
[1724458654610,2.32245064,2765.7,2765.5,3.61598]
[1724458656166,2.32245064,2765.7,2765.3,3.61615]
[1724458656327,2.32245064,2765.7,2765.1,3.61646]
[1724458656532,2.32245064,2765.7,2765.2,3.61635]
[1724458656849,2.32245064,2765.7,2764.6,3.61709]
[1724458656850,5.93899,2765.5,2764.7,3.61697]
[1724458657055,5.93899,2765.5,2764.9,3.61676]
[1724458657056,2.323,2765.5,2764.9,3.61676]
[1724458657230,3.6162,2765.4,2764.7,3.61697]
[1724458657551,5.93936,2765.3,2764.7,3.61693]
[1724458657850,6.9702143,2765.3,2764.7,3.61693]
[1724458660073,2.323,2765.3,2764.9,3.61667]
[1724458660219,2.323,2765.3,2765.0,3.61662]
[1724458660728,2.323,2765.3,2765.1,3.61642]
[1724458660938,3.07619297,2765.6,2765.3,3.61616]
[1724458661123,2.323,2765.6,2765.3,3.61616]
[1724458661322,2.323,2765.6,2765.1,3.6164]
[1724458662279,3.07619297,2765.6,2765.1,3.6164]
[1724458663228,0.75319297,2765.5,2765.1,3.6164]
[1724458663953,0.75319297,2765.5,2764.8,3.61687]
[1724458664178,3.61658,2765.1,2764.5,3.61719]
[1724458664319,0.75319297,2765.2,2764.6,3.61714]
[1724458664523,4.36959297,2765.2,2764.6,3.61714]
[1724458664725,4.36959297,2765.2,2764.7,3.61698]
[1724458664726,0.75319297,2765.2,2764.7,3.61698]
[1724458665146,0.75319297,2765.1,2764.7,3.61698]
[1724458665477,0.75319297,2765.0,2764.7,3.61698]
[1724458665767,0.75319297,2765.1,2764.7,3.61698]
[1724458665969,0.75319297,2765.0,2764.7,3.61698]
[1724458666118,0.75319297,2765.1,2764.7,3.61698]
[1724458667275,0.75319297,2765.0,2764.7,3.61698]
[1724458667574,4.74846558,2765.2,2764.7,3.61698]
[1724458667575,0.75319297,2765.1,2764.7,3.61698]
[1724458669162,0.75319297,2765.0,2764.7,3.61698]
[1724458670357,0.75319297,2765.0,2764.7,4.340357]
[1724458670587,0.75319297,2765.1,2764.9,3.61676]
[1724458670868,0.75319297,2765.1,2765.0,3.61663]
[1724458671160,0.75356033,2765.2,2765.1,3.6165]
[1724458671349,1.13206558,2765.4,2765.1,3.6165]
[1724458671350,0.75356033,2765.3,2765.1,3.6165]
[1724458671519,0.75356033,2765.2,2765.1,4.339813]
[1724458671719,0.75356033,2765.2,2765.1,10.435313]
[1724458671920,0.75356033,2765.5,2765.3,3.61616]
[1724458672351,0.75356033,2765.5,2765.2,7.23267]
[1724458672561,0.75356033,2765.5,2765.2,3.6163]
[1724458672765,0.75356033,2765.5,2765.2,7.23257]
[1724458673083,1.13206558,2765.6,2765.2,3.61627]
[1724458673084,0.75356033,2765.4,2765.2,3.61627]
[1724458673370,0.75356033,2765.4,2765.3,3.61624]
[1724458673670,0.75356033,2765.5,2765.2,4.6597763]
[1724458673878,0.75356033,2765.5,2765.3,3.6162]
[1724458674219,0.75356033,2765.5,2765.4,3.61611]
[1724458674579,0.75356033,2765.5,2765.2,4.6597763]
[1724458674580,0.00155064,2765.7,2765.5,3.61598]
[1724458674883,0.00155064,2765.7,2765.6,3.977448]
[1724458675168,2.29995064,2765.7,2765.3,3.61617]
[1724458675379,3.05351097,2765.7,2765.3,3.61617]
[1724458675582,0.75356033,2765.6,2765.3,3.61617]
[1724458676287,0.75356033,2765.5,2765.1,6.09539]
[1724458676425,0.75356033,2765.6,2765.1,3.61639]
[1724458676771,0.75356033,2765.5,2765.2,3.61628]
[1724458676951,0.75356033,2765.5,2765.1,3.61639]
[1724458676952,0.75356033,2765.5,2765.3,3.61621]
[1724458677891,0.75356033,2765.6,2765.3,3.61621]
[1724458678747,0.75356033,2765.5,2765.3,3.61621]
[1724458680854,0.75356033,2765.6,2765.3,3.61615]
[1724458681051,0.75356033,2765.6,2765.1,3.61644]
[1724458681052,1.32306006,2765.6,2765.1,3.61641]
[1724458681263,0.75356033,2765.6,2765.3,3.61613]
[1724458681871,0.75356033,2765.6,2765.4,3.6161]
[1724458682052,1.13361622,2765.7,2765.4,5.9231]
[1724458682053,0.75511097,2765.7,2765.4,5.9231]
[1724458682257,0.00155064,2765.7,2765.6,3.61585]
[1724458682637,0.75511097,2765.7,2765.6,3.61585]
[1724458682841,0.00155064,2765.7,2765.6,4.569732]
[1724458683064,0.00155064,2765.7,2765.6,3.61585]
[1724458685063,0.00155064,2765.7,2765.5,3.61597]
[1724458685397,0.00155064,2765.7,2765.5,3.6159]
[1724458685398,0.75511097,2765.7,2765.5,3.6159]
[1724458685690,0.00155064,2765.7,2765.6,7.2317]
[1724458685892,0.00155064,2765.7,2765.6,8.18557]
[1724458686475,0.00155064,2765.7,2765.6,10.49257]
[1724458688010,0.00155064,2765.7,2765.6,17.89352745]
[1724458688157,0.00155064,2765.7,2765.6,21.44352745]
[1724458688358,0.00155064,2765.7,2765.6,14.04257]
[1724458690094,0.00155064,2765.7,2765.6,17.65842]
[1724458691987,0.00155064,2765.7,2765.6,17.78547909]
[1724458700668,0.00155064,2765.7,2765.6,8.31262909]
[1724458701003,0.00155064,2765.7,2765.6,7.2317]
[1724458701317,2.2643,2765.6,2765.1,7.44]
[1724458701458,2.2643,2765.6,2765.2,3.61627]
[1724458701665,2.2643,2765.6,2765.4,3.616]
[1724458702067,0.00155064,2765.7,2765.6,3.61585]
[1724458702412,0.00155064,2765.7,2765.6,7.2317]
[1724458704164,0.00155064,2765.7,2765.6,13.15315]
[1724458704525,0.00155064,2765.7,2765.6,13.70315]
[1724458704813,0.00155064,2765.7,2765.6,16.70315]
[1724458705032,0.00155064,2765.7,2765.6,18.78393925]
[1724458705705,0.00155064,2765.7,2765.6,15.16808925]
[1724458706966,0.00155064,2765.7,2765.6,18.78393925]
[1724458715624,0.00155064,2765.7,2765.6,16.47833925]
[1724458715955,0.00155064,2765.7,2765.6,12.86248925]
[1724458717440,0.00155064,2765.7,2765.6,10.2317]
[1724458717652,0.00155064,2765.7,2765.6,3.61585]
[1724458718002,2.49565064,2765.7,2765.3,3.61621]
[1724458718433,2.49565064,2765.7,2765.3,7.23236]
[1724458718951,2.49565064,2765.7,2765.4,3.61608]
[1724458719266,3.1067717,2765.7,2765.2,3.61627]
[1724458719564,3.1067717,2765.7,2765.3,3.61621]
[1724458720415,2.49565064,2765.7,2765.3,7.23236]
[1724458720650,2.49565064,2765.7,2765.3,3.61615]
[1724458721041,2.49565064,2765.7,2765.4,3.6161]
[1724458727946,2.49565064,2765.7,2765.1,0.75453551]
[1724458728271,2.4941,2765.4,2765.1,0.75453551]
[1724458728474,0.611018,2765.3,2765.1,0.75453551]
[1724458728897,2.4941,2765.4,2765.1,0.75453551]
[1724458730993,3.24766033,2765.4,2765.0,3.61663]
[1724458731405,3.24766033,2765.4,2765.0,7.23317]
[1724458731557,3.24766033,2765.4,2765.0,3.61654]
[1724458733050,3.24766033,2765.4,2765.0,7.23309]
[1724458733295,2.4941,2765.4,2765.0,3.61654]
[1724458733455,2.4941,2765.4,2765.0,7.23309]
[1724458733857,2.4941,2765.4,2765.0,3.61654]
[1724458734195,3.24766033,2765.2,2764.6,3.61707]
[1724458734399,3.24766033,2765.2,2764.4,7.44]
[1724458734400,2.4941,2765.0,2764.4,3.61732]
[1724458734600,2.4941,2765.0,2764.1,19.84]
[1724458734601,6.86430033,2765.0,2764.3,3.61746]
[1724458734914,3.24766033,2764.5,2764.0,3.61791]
[1724458735051,3.24766033,2764.5,2763.9,3.61798]
[1724458735266,2.4941,2764.5,2764.0,3.61783]
[1724458735864,3.24766033,2764.5,2764.0,3.61783]
[1724458736299,2.4941,2764.5,2764.0,3.61783]
[1724458736677,3.29379659,2764.5,2764.0,3.61783]
[1724458739114,2.4941,2764.5,2764.1,3.6178]
[1724458739268,2.4941,2764.5,2763.9,3.61798]
[1724458739623,2.3738,2764.3,2763.5,7.44]
[1724458739908,3.61777,2764.2,2763.5,3.61859]
[1724458740119,3.61783,2764.1,2763.4,3.61864]
[1724458740553,2.3738,2764.0,2763.4,3.61864]
[1724458740851,2.3738,2764.0,2763.4,3.61863]
[1724458741019,2.3738,2764.0,2763.5,3.61857]
[1724458741208,2.3738,2764.0,2763.6,3.61844]
[1724458741823,3.8551,2764.2,2763.9,3.61805]
[1724458741824,2.3738,2764.2,2763.9,3.61805]
[1724458742221,5.991,2764.6,2763.9,3.61805]
[1724458742515,4.29177603,2764.5,2763.9,3.61805]
[1724458743050,0.67445603,2764.5,2764.0,3.61792]
[1724458744847,2.3738,2764.6,2764.0,3.61792]
[1724458745051,2.3738,2764.6,2764.2,3.6176]
[1724458745270,2.3738,2764.6,2764.0,3.61789]
[1724458745428,5.99118,2764.5,2763.8,3.61811]
[1724458745816,3.61742,2764.4,2763.8,3.61811]
[1724458746331,3.61772,2764.2,2763.6,7.44]
[1724458746538,4.53866778,2764.8,2763.4,3.61863]
[1724458746539,3.61796,2764.0,2763.4,3.61863]
[1724458747726,3.61796,2764.0,2763.4,7.23727]
[1724458747926,3.61796,2764.0,2763.4,3.61863]
[1724458749642,3.61796,2764.0,2763.2,3.61894]
[1724458749986,2.3738,2763.7,2763.1,3.6191]
[1724458750146,5.99217,2763.7,2763.1,3.6191]
[1724458750544,5.99217,2763.7,2763.2,3.61897]
[1724458750545,2.3738,2763.7,2763.2,3.61897]
[1724458750782,2.3738,2763.7,2763.3,3.61885]
[1724458751258,2.3738,2763.7,2763.2,7.23787]
[1724458751435,2.3738,2763.7,2763.2,3.6189]
[1724458751949,2.3738,2763.7,2763.2,7.23778]
[1724458752148,2.973001,2763.7,2763.0,3.61924]
[1724458752500,3.6186,2763.5,2763.0,3.61924]
[1724458752653,3.61858,2763.6,2763.0,7.2384]
[1724458752860,3.61858,2763.6,2763.0,3.61916]
[1724458753183,3.6186,2763.5,2762.8,3.61941]
[1724458753338,2.3738,2763.4,2762.8,3.61941]
[1724458753538,2.3738,2763.4,2762.9,3.61938]
[1724458754049,2.97304,2763.4,2762.8,3.61941]
[1724458754250,2.97304,2763.4,2762.9,3.61937]
[1724458754961,2.97304,2763.4,2762.8,3.61941]
[1724458756380,2.3738,2763.4,2762.8,3.61941]
[1724458757742,2.3738,2763.4,2762.8,7.23884]
[1724458757940,2.3738,2763.4,2763.0,3.61925]
[1724458758389,3.6185,2763.6,2763.0,6.00445]
[1724458759200,6.02029,2763.7,2763.0,6.00445]
[1724458759504,2.4019,2763.7,2763.3,3.61884]
[1724458760020,2.4019,2763.7,2763.1,4.219475]
[1724458760216,2.4019,2763.7,2763.2,3.61899]
[1724458760449,2.4019,2764.0,2763.2,3.6189]
[1724458760807,3.61807,2763.9,2763.3,3.61885]
[1724458761204,3.61822,2763.8,2763.1,4.219455]
[1724458761445,3.61843,2763.7,2763.1,4.219465]
[1724458762007,7.2363,2763.9,2763.2,3.61895]
[1724458762218,3.61821,2763.8,2763.2,3.61895]
[1724458766730,3.61821,2763.8,2763.3,3.61884]
[1724458766971,6.0199,2764.0,2763.3,3.61884]
[1724458767338,3.61817,2763.9,2763.3,3.61884]
[1724458767866,6.0199,2764.0,2763.5,3.61856]
[1724458768170,2.4672,2764.3,2763.7,3.61825]
[1724458768665,2.4672,2764.3,2763.5,3.61853]
[1724458768666,3.61782,2764.1,2763.5,3.61853]
[1724458768851,3.61782,2764.1,2763.5,4.577136]
[1724458769370,3.61776,2764.2,2763.5,4.577096]
[1724458769671,3.61776,2764.2,2763.5,8.195596]
[1724458769967,3.61776,2764.2,2763.6,3.61843]
[1724458770352,2.4672,2764.3,2763.5,4.577096]
[1724458770353,2.4672,2764.3,2763.7,3.6183]
[1724458771266,3.6177,2764.2,2763.7,3.6183]
[1724458773507,3.61782,2764.1,2763.5,4.577096]
[1724458773797,3.6177,2764.2,2763.6,3.61846]
[1724458774295,3.6179,2764.1,2763.5,3.61849]